Workbook

Sheet MacBook Air
D13: MacBook Air
A15: Producator | B15: Part Number | C15: Apple Categ | D15: Descriere | E15: Garantie Standard | F15: Pret lei fara tva | G15: Bonus Push-Sales Rebate Ianuarie (CN la final de luna) lei buc | H15: Bonus Trade-IN (exclude valoare buy-back) lei buc | I15: Garantie + 12 Luni lei fara tva | J15: Garantie + 24 Luni lei fara tva | K15: Garantie +36 Luni lei fara tva | L15: Garantie + 48 Luni lei fara tva | M15: Stoc | N15: Rezervat | O15: Diagonala Display | P15: Culoare | Q15: Procesor | R15: Ram | S15: Stocare | T15: Tastatura
A16: Apple | B16: MC7W4ZE/A | C16: MacBook Air M2 | D16: MacBook Air 13.6" Retina/Apple M2 (CPU 8-core, GPU 8-core, Neural Engine16-core)/16GB/256GB - Starlight - INT KB (2022) | E16: 12 Luni | F16: =VLOOKUP(Table1[[#This Row],[Part Number]],Query2!A:D,4,0) -> 3641.44 | G16: 200 | H16: 250 | I16: =Table1[[#This Row],[Pret lei fara tva]]*4.25% -> 154.7612 | J16: =Table1[[#This Row],[Pret lei fara tva]]*6.67% -> 242.884048 | K16: =Table1[[#This Row],[Pret lei fara tva]]*7.58% -> 276.021152 | L16: =Table1[[#This Row],[Pret lei fara tva]]*8.09% -> 294.592496 | M16: =VLOOKUP(Table1[[#This Row],[Part Number]],Query2!A:D,2,0) -> 0 | N16: =VLOOKUP(Table1[[#This Row],[Part Number]],Query2!A:D,3,0) -> 0 | O16: 13.6" | P16: Starlight | Q16: Apple M2 (CPU 8-core, GPU 8-core, Neural Engine16-core) | R16: 16GB | S16: 256GB | T16: INT KB

Sheet MacBook Pro
D13: MacBook Pro
A15: Producator | B15: Part Number | C15: Apple Categ | D15: Descriere | E15: Garantie Standard | F15: Pret lei fara tva | G15: Bonus Push-Sales Rebate Ianuarie (CN la final de luna) lei buc | H15: Bonus Trade-IN (exclude valoare buy-back) lei buc | I15: Garantie + 12 Luni lei fara tva | J15: Garantie + 24 Luni lei fara tva | K15: Garantie +36 Luni lei fara tva | L15: Garantie + 48 Luni lei fara tva | M15: Stoc | N15: Rezervat | O15: Diagonala Display | P15: Culoare | Q15: Procesor | R15: Ram | S15: Stocare | T15: Tastatura | U15: Nano-Texture
A16: Apple | B16: MDE04RO/A | C16: MacBook PRO New M5 | D16: MacBook Pro 14.2"/Apple M5 (CPU 10-core, GPU 10-core, Neural Engine16-core)/16GB/512GB – Space Black – INT KB (No Adapter) - 2025 | E16: 12 Luni | F16: =VLOOKUP(Table2[[#This Row],[Part Number]],Query2!A:D,4,0) -> 6711.64 | G16: 200 | H16: 500 | I16: =Table2[[#This Row],[Pret lei fara tva]]*4.25% -> 285.2447 | J16: =Table2[[#This Row],[Pret lei fara tva]]*6.67% -> 447.666388 | K16: =Table2[[#This Row],[Pret lei fara tva]]*7.58% -> 508.742312 | L16: =Table2[[#This Row],[Pret lei fara tva]]*8.09% -> 542.971676 | M16: =VLOOKUP(Table2[[#This Row],[Part Number]],Query2!A:D,2,0) -> 100 | N16: =VLOOKUP(Table2[[#This Row],[Part Number]],Query2!A:D,3,0) -> 4 | O16: 14.2" | P16: Space Black | Q16: Apple M5 (CPU 10-core, GPU 10-core, Neural Engine16-core) | R16: 16GB | S16: 512GB | T16: INT KB | U16: Standard

Sheet MacMini
D13: Mac Mini
A15: Producator | B15: Part Number | C15: Apple Categ | D15: Descriere | E15: Garantie Standard | F15: Pret lei fara tva | G15: Bonus Push-Sales Rebate Ianuarie (CN la final de luna) lei buc | H15: Bonus Trade-IN (exclude valoare buy-back) lei buc | I15: Garantie + 12 Luni lei fara tva | J15: Garantie + 24 Luni lei fara tva | K15: Garantie +36 Luni lei fara tva | L15: Garantie + 48 Luni lei fara tva | M15: Stoc | N15: Rezervat | O15: Procesor | P15: Ram | Q15: Stocare
A16: Apple | B16: MU9D3ZE/A | C16: Mac Mini | D16: Mac mini: Apple M4 (CPU 10-core, GPU 10-core, Neural Engine 16-core)/16GB/256GB | E16: 12 Luni | F16: =VLOOKUP(Table5[[#This Row],[Part Number]],Query2!A:D,4,0) -> 2647.01 | G16: 200 | H16: 250 | I16: =Table5[[#This Row],[Pret lei fara tva]]*4.25% -> 112.497925 | J16: =Table5[[#This Row],[Pret lei fara tva]]*6.67% -> 176.555567 | K16: =Table5[[#This Row],[Pret lei fara tva]]*7.58% -> 200.643358 | L16: =Table5[[#This Row],[Pret lei fara tva]]*8.09% -> 214.143109 | M16: =VLOOKUP(Table5[[#This Row],[Part Number]],Query2!A:D,2,0) -> 100 | N16: =VLOOKUP(Table5[[#This Row],[Part Number]],Query2!A:D,3,0) -> 0 | O16: Apple M4 (CPU 10-core, GPU 10-core, Neural Engine 16-core) | P16: 16GB | Q16: 256GB

Sheet Mac Studio
D13: Mac Studio
A15: Producator | B15: Part Number | C15: Apple Categ | D15: Descriere | E15: Garantie Standard | F15: Pret lei fara tva | G15: Bonus Push-Sales Rebate Ianuarie (CN la final de luna) lei buc | H15: Bonus Trade-IN (exclude valoare buy-back) lei buc | I15: Garantie + 12 Luni lei fara tva | J15: Garantie + 24 Luni lei fara tva | K15: Garantie +36 Luni lei fara tva | L15: Garantie + 48 Luni lei fara tva | M15: Stoc | N15: Rezervat | O15: Procesor | P15: Ram | Q15: Stocare
A16: Apple | B16: MU963ZE/A | C16: Mac Studio | D16: Apple Mac Studio M4 Max (CPU 14-core, GPU 32-core, Neural Engine 16-Core)/36GB/512GB | E16: 12 Luni | F16: =VLOOKUP(Table6[[#This Row],[Part Number]],Query2!A:D,4,0) -> 8524.88 | G16: 200 | H16: 500 | I16: =Table6[[#This Row],[Pret lei fara tva]]*4.25% -> 362.3074 | J16: =Table6[[#This Row],[Pret lei fara tva]]*6.67% -> 568.609496 | K16: =Table6[[#This Row],[Pret lei fara tva]]*7.58% -> 646.185904 | L16: =Table6[[#This Row],[Pret lei fara tva]]*8.09% -> 689.662792 | M16: =VLOOKUP(Table6[[#This Row],[Part Number]],Query2!A:D,2,0) -> 14 | N16: =VLOOKUP(Table6[[#This Row],[Part Number]],Query2!A:D,3,0) -> 0 | O16: M4 Max (CPU 14-core, GPU 32-core, Neural Engine 16-Core) | P16: 512GB | Q16: 512GB

Sheet iMac
D13: iMac
A15: Producator | B15: Part Number | C15: Apple Categ | D15: Descriere | E15: Garantie Standard | F15: Pret lei fara tva | G15: Bonus Push-Sales Rebate Ianuarie (CN la final de luna) lei buc | H15: Bonus Trade-IN (exclude valoare buy-back) lei buc | I15: Garantie + 12 Luni lei fara tva | J15: Garantie + 24 Luni lei fara tva | K15: Garantie +36 Luni lei fara tva | L15: Garantie + 48 Luni lei fara tva | M15: Stoc | N15: Rezervat | O15: Procesor | P15: Ram | Q15: Stocare | R15: Culoare
A16: Apple | B16: MWUC3RO/A | C16: iMac | D16: Apple iMAC 24" Retina 4.5k/ Apple M4 (CPU 8-core, GPU 8-core, Neural Engine 16-core)/16GB/256GB - Silver - INT KB (2024) | E16: 12 Luni | F16: =VLOOKUP(Table7[[#This Row],[Part Number]],Query2!A:D,4,0) -> 5553.39 | G16: 200 | H16: 500 | I16: =Table7[[#This Row],[Pret lei fara tva]]*4.25% -> 236.019075 | J16: =Table7[[#This Row],[Pret lei fara tva]]*6.67% -> 370.411113 | K16: =Table7[[#This Row],[Pret lei fara tva]]*7.58% -> 420.946962 | L16: =Table7[[#This Row],[Pret lei fara tva]]*8.09% -> 449.269251 | M16: =VLOOKUP(Table7[[#This Row],[Part Number]],Query2!A:D,2,0) -> 19 | N16: =VLOOKUP(Table7[[#This Row],[Part Number]],Query2!A:D,3,0) -> 0 | O16: Apple M4 (CPU 8-core, GPU 8-core, Neural Engine 16-core) | P16: 16GB | Q16: 256GB | R16: =INDEX(_xlfn.TEXTSPLIT(TRIM(Table7[[#This Row],[Descriere]]), " "), 16) -> Silver

Sheet Mac Accesories
D13: Mac Accessories
A15: Producator | B15: Part Number | C15: Apple Categ | D15: Descriere | E15: Garantie Standard | F15: Pret lei fara tva | G15: Stoc | H15: Rezervat
A16: Apple | B16: MW2N3Z/A | C16: Apple Mac Accessories | D16: Power Adapter Extension Cable | E16: 12 Luni | F16: =VLOOKUP(Table11[[#This Row],[Part Number]],Query2!A:D,4,0) -> 83.79 | G16: =VLOOKUP(Table11[[#This Row],[Part Number]],Query2!A:D,2,0) -> 5 | H16: =VLOOKUP(Table11[[#This Row],[Part Number]],Query2!A:D,3,0) -> 0

Sheet Display
D13: Display
A15: Producator | B15: Part Number | C15: Apple Categ | D15: Descriere | E15: Garantie Standard | F15: Pret lei fara tva | G15: Garantie + 12 Luni lei fara tva | H15: Garantie + 24 Luni lei fara tva | I15: Garantie +36 Luni lei fara tva | J15: Garantie + 48 Luni lei fara tva | K15: Stoc | L15: Rezervat
A16: Apple | B16: MYJG3Z/A | C16: Displays | D16: Apple Studio Display - Standard Glass - Tilt-Adjustable Stand | E16: 12 Luni | F16: =VLOOKUP(Table16[[#This Row],[Part Number]],Query2!A:D,4,0) -> 6535.14 | G16: =Table16[[#This Row],[Pret lei fara tva]]*4.25% -> 277.74345 | H16: =Table16[[#This Row],[Pret lei fara tva]]*6.67% -> 435.893838 | I16: =Table16[[#This Row],[Pret lei fara tva]]*7.58% -> 495.363612 | J16: =Table16[[#This Row],[Pret lei fara tva]]*8.09% -> 528.692826 | K16: =VLOOKUP(Table16[[#This Row],[Part Number]],Query2!A:D,2,0) -> 27 | L16: =VLOOKUP(Table16[[#This Row],[Part Number]],Query2!A:D,3,0) -> 0

Sheet iPad
D13: iPad
A15: Producator | B15: Part Number | C15: Apple Categ | D15: Descriere | E15: Garantie Standard | F15: Pret lei fara tva | G15: Garantie + 12 Luni lei fara tva | H15: Garantie + 24 Luni lei fara tva | I15: Garantie +36 Luni lei fara tva | J15: Garantie + 48 Luni lei fara tva | K15: Stoc | L15: Rezervat | M15: Diagonala Display | N15: Procesor | O15: Stocare | P15: Wi-Fi+Cellular | Q15: Nano-Texture | R15: Culoare
A16: Apple | B16: MXN73HC/A | C16: iPad Mini | D16: Apple iPad mini (A17 Pro) Wi-Fi 128GB - Blue | E16: 12 Luni | F16: =VLOOKUP(Table8[[#This Row],[Part Number]],Query2!A:D,4,0) -> 2149.98 | G16: =Table8[[#This Row],[Pret lei fara tva]]*4.25% -> 91.37415 | H16: =Table8[[#This Row],[Pret lei fara tva]]*6.67% -> 143.403666 | I16: =Table8[[#This Row],[Pret lei fara tva]]*7.58% -> 162.968484 | J16: =Table8[[#This Row],[Pret lei fara tva]]*8.09% -> 173.933382 | K16: =VLOOKUP(Table8[[#This Row],[Part Number]],Query2!A:D,2,0) -> 69 | L16: =VLOOKUP(Table8[[#This Row],[Part Number]],Query2!A:D,3,0) -> 0 | M16: 8.3" | N16: A17 Pro | O16: 128GB | P16: Wi-Fi | Q16: Standard | R16: Blue

Sheet iPad Accesories
D13: iPad Accessories
A15: Producator | B15: Part Number | C15: Apple Categ | D15: Descriere | E15: Garantie Standard | F15: Pret lei fara tva | G15: Stoc | H15: Rezervat
A16: Apple | B16: MGYX4LB/A | C16: SMART KEYBOARD, APPLE PENCIL AND APPLE PENCIL ACCESSORIES | D16: Magic Keyboard for iPad Air 11-inch (M3) - US English - Black | E16: 12 Luni | F16: =VLOOKUP(Table12[[#This Row],[Part Number]],Query2!A:D,4,0) -> 1239.9 | G16: =VLOOKUP(Table12[[#This Row],[Part Number]],Query2!A:D,2,0) -> 0 | H16: =VLOOKUP(Table12[[#This Row],[Part Number]],Query2!A:D,3,0) -> 16

Sheet Watch
E13: Watch
A15: Producator | B15: Part Number | C15: Apple Categ | D15: Descriere | E15: Garantie Standard | F15: Garantie Standard | G15: Pret lei fara tva | H15: Garantie + 12 Luni lei fara tva | I15: Garantie + 24 Luni lei fara tva | J15: Garantie +36 Luni lei fara tva | K15: Garantie + 48 Luni lei fara tva | L15: Stoc | M15: Rezervat | N15: Culoare | O15: Metal | P15: Dimensiune | Q15: Wi-Fi+Cellular | R15: Tip Curea
A16: Apple | B16: MEH34ET/A | C16: Watch SE 3 | D16: Apple Watch SE 3 GPS 40mm Starlight Aluminium Case with Starlight Sport Band - S/M | F16: 12 Luni | G16: =VLOOKUP(Table9[[#This Row],[Part Number]],Query2!A:D,4,0) ->  | H16: =Table9[[#This Row],[Pret lei fara tva]]*4.25% ->  | I16: =Table9[[#This Row],[Pret lei fara tva]]*6.67% ->  | J16: =Table9[[#This Row],[Pret lei fara tva]]*7.58% ->  | K16: =Table9[[#This Row],[Pret lei fara tva]]*8.09% ->  | L16: =VLOOKUP(Table9[[#This Row],[Part Number]],Query2!A:D,2,0) ->  | M16: =VLOOKUP(Table9[[#This Row],[Part Number]],Query2!A:D,3,0) ->  | N16: Starlight | O16: Aluminium | P16: 40mm | Q16: Nu | R16: Sport Band

Sheet Watch Accesories
D13: Watch Accessories
A15: Producator | B15: Part Number | C15: Apple Categ | D15: Descriere | E15: Garantie Standard | F15: Pret lei fara tva | G15: Stoc | H15: Rezervat
A16: Apple | B16: MT0H3ZM/A | C16: Watch Accessories | D16: Apple Apple Watch Magnetic Fast Charger to USB-C Cable (1 m) | E16: 12 Luni | F16: =VLOOKUP(Table13[[#This Row],[Part Number]],Query2!A:D,4,0) ->  | G16: =VLOOKUP(Table13[[#This Row],[Part Number]],Query2!A:D,2,0) ->  | H16: =VLOOKUP(Table13[[#This Row],[Part Number]],Query2!A:D,3,0) -> 

Sheet iPhone
A15: Producator | B15: Part Number | C15: Apple Categ | D15: Descriere | E15: Garantie Standard | F15: Pret lei fara tva | G15: Garantie + 12 Luni lei fara tva | H15: Garantie + 24 Luni lei fara tva | I15: Garantie +36 Luni lei fara tva | J15: Garantie + 48 Luni lei fara tva | K15: Stoc | L15: Rezervat | M15: Culoare | N15: Stocare
A16: Apple | B16: MTP03RX/A | C16: iPhone 15 | D16: iPhone 15 128GB Black | E16: 12 Luni | F16: =VLOOKUP(Table10[[#This Row],[Part Number]],Query2!A:D,4,0) -> 2572.18 | G16: =Table10[[#This Row],[Pret lei fara tva]]*4.25% -> 109.31765 | H16: =Table10[[#This Row],[Pret lei fara tva]]*6.67% -> 171.564406 | I16: =Table10[[#This Row],[Pret lei fara tva]]*7.58% -> 194.971244 | J16: =Table10[[#This Row],[Pret lei fara tva]]*8.09% -> 208.089362 | K16: =VLOOKUP(Table10[[#This Row],[Part Number]],Query2!A:D,2,0) -> 100 | L16: =VLOOKUP(Table10[[#This Row],[Part Number]],Query2!A:D,3,0) -> 75 | M16: Black | N16: 128GB

Sheet iPhone Accesories
D13: iPhone Accessories
A15: Producator | B15: Part Number | C15: Apple Categ | D15: Descriere | E15: Garantie Standard | F15: Pret lei fara tva | G15: Stoc | H15: Rezervat
A16: Apple | B16: MA6A4ZM/A | C16: IOS Accessories | D16: iPhone 16 Clear Case with MagSafe | E16: 12 Luni | F16: =VLOOKUP(Table14[[#This Row],[Part Number]],Query2!A:D,4,0) -> 188.5 | G16: =VLOOKUP(Table14[[#This Row],[Part Number]],Query2!A:D,2,0) -> 86 | H16: =VLOOKUP(Table14[[#This Row],[Part Number]],Query2!A:D,3,0) -> 0

Sheet Casti
D13: Casti
A15: Producator | B15: Part Number | C15: Apple Categ | D15: Descriere | E15: Garantie Standard | F15: Pret lei fara tva | G15: Stoc | H15: Rezervat
A16: Apple | B16: MXP63ZM/A | C16: Headphones /AIRPODS & Speakers | D16: Apple AirPods 4 (USB-C) | E16: 12 Luni | F16: =VLOOKUP(Table15[[#This Row],[Part Number]],Query2!A:D,4,0) -> 549.37 | G16: =VLOOKUP(Table15[[#This Row],[Part Number]],Query2!A:D,2,0) -> 100 | H16: =VLOOKUP(Table15[[#This Row],[Part Number]],Query2!A:D,3,0) -> 35

Sheet Query2
A1: Code | B1: Stoc | C1: Rezervat | D1: Pret
A2: MU9D3ZE/A | B2: 100 | C2: 0 | D2: 2647.01
A3: MXN73HC/A | B3: 69 | C3: 0 | D3: 2149.98
A4: MU963ZE/A | B4: 14 | C4: 0 | D4: 8524.88
A5: MWUC3RO/A | B5: 19 | C5: 0 | D5: 5553.39
A6: MTP03RX/A | B6: 100 | C6: 75 | D6: 2572.18
A7: MW2N3Z/A | B7: 5 | C7: 0 | D7: 83.79
A8: MC7W4ZE/A | B8: 0 | C8: 0 | D8: 3641.44
A9: MGYX4LB/A | B9: 0 | C9: 16 | D9: 1239.9
A10: MA6A4ZM/A | B10: 86 | C10: 0 | D10: 188.5
A11: MDE04RO/A | B11: 100 | C11: 4 | D11: 6711.64
A12: MYJG3Z/A | B12: 27 | C12: 0 | D12: 6535.14
A13: MXP63ZM/A | B13: 100 | C13: 35 | D13: 549.37
